fUST/lending_fUST_20250209
["ID","MTS","AMOUNT","RATE_DAILY","PERIOD"]
[352342805,1739049043111,-500.0,0.00011095,2]
[352342807,1739049043120,-544.75,0.00011095,2]
[352342809,1739049043129,-631.51408497,0.00011095,2]
[352342810,1739049043140,-2715.78,0.00011095,2]
[352342811,1739049043150,-500.0,0.00011095,2]
[352342812,1739049043159,-500.0,0.00011095,2]
[352342813,1739049043168,-500.0,0.00011095,2]
[352342814,1739049043178,-828.28,0.00011095,2]
[352342815,1739049043187,-500.0,0.00011095,2]
[352342816,1739049043197,-500.0,0.00011095,2]
[352342817,1739049043207,-500.0,0.00011095,2]
[352342818,1739049043216,-500.0,0.00011095,2]
[352342819,1739049043226,-500.0,0.00011095,2]
[352342820,1739049043235,-500.0,0.00011095,2]
[352342821,1739049043244,-500.0,0.00011095,2]
[352342822,1739049043254,-500.0,0.00011095,2]
[352342823,1739049043263,-767.54,0.00011095,2]
[352342824,1739049043272,-500.0,0.00011095,2]
[352342825,1739049043282,-500.0,0.00011095,2]
[352342827,1739049043291,-500.0,0.00011095,2]
[352342829,1739049043300,-500.0,0.00011095,2]
[352342831,1739049043309,-500.0,0.00011095,2]
[352342833,1739049043319,-500.0,0.00011095,2]
[352342835,1739049043328,-401.88639281,0.00011095,2]
[352342836,1739049043337,-500.0,0.00011095,2]
[352342838,1739049043349,-2047.26,0.00011095,2]
[352342840,1739049043359,-591.08176997,0.00011095,2]
[352342842,1739049043369,-228.92487641,0.00011095,2]
[352342844,1739049043379,-500.0,0.00011095,2]
[352342846,1739049043389,-500.0,0.00011095,2]
[352342848,1739049043399,-500.0,0.00011095,2]
[352342850,1739049043408,-932.33,0.00011095,2]
[352342852,1739049043417,-500.0,0.00011095,2]
[352342854,1739049043427,-647.01,0.00011095,2]
[352342856,1739049043437,-4954.21,0.00011095,2]
[352342858,1739049043446,-500.0,0.00011095,2]
[352342860,1739049043455,-500.0,0.00011095,2]
[352342862,1739049043465,-500.0,0.00011095,2]
[352342864,1739049043474,-260.22843773,0.00011095,2]
[352342866,1739049043483,-500.0,0.00011095,2]
[352342868,1739049043493,-500.0,0.00011095,2]
[352342870,1739049043502,-1904.01,0.00011095,2]
[352342872,1739049043511,-471.4,0.00011095,2]
[352342874,1739049043521,-500.0,0.00011095,2]
[352342876,1739049043531,-500.0,0.00011095,2]
[352342878,1739049043540,-500.0,0.00011095,2]
[352342880,1739049043550,-500.0,0.00011095,2]
[352342882,1739049043560,-500.0,0.00011095,2]
[352342884,1739049043569,-513.93161765,0.00011095,2]
[352342886,1739049043579,-500.0,0.00011095,2]
[352342888,1739049043588,-780.5,0.00011095,2]
[352342890,1739049043597,-500.0,0.00011095,2]
[352342892,1739049043608,-8835.82,0.00011095,2]
[352342893,1739049043617,-500.0,0.00011095,2]
[352342894,1739049043626,-500.0,0.00011095,2]
[352342895,1739049043637,-938.64,0.00011095,2]
[352342897,1739049043647,-500.0,0.00011095,2]
[352342899,1739049043656,-500.0,0.00011095,2]
[352342901,1739049043666,-500.0,0.00011095,2]
[352342903,1739049043676,-2037.78,0.00011095,2]
[352342905,1739049043686,-500.0,0.00011095,2]
[352342907,1739049043696,-375.51,0.00011095,2]
[352342909,1739049043705,-614.12,0.00011095,2]
[352342911,1739049043714,-500.0,0.00011095,2]
[352342913,1739049043724,-1916.01,0.00011095,2]
[352342914,1739049043733,-862.96,0.00011095,2]
[352342915,1739049043744,-500.0,0.00011095,2]
[352342916,1739049043753,-500.0,0.00011095,2]
[352342917,1739049043763,-829.65,0.00011095,2]
[352342918,1739049043773,-500.0,0.00011095,2]
[352342919,1739049043783,-500.0,0.00011095,2]
[352342920,1739049043793,-500.0,0.00011095,2]
[352342921,1739049043803,-500.0,0.00011095,2]
[352342922,1739049043812,-500.0,0.00011095,2]
[352342923,1739049043823,-500.0,0.00011095,2]
[352342924,1739049043832,-500.0,0.00011095,2]
[352342925,1739049043841,-500.0,0.00011095,2]
[352342926,1739049043851,-500.0,0.00011095,2]
[352342927,1739049043860,-356.13866016,0.00011095,2]
[352342928,1739049043870,-674.32,0.00011095,2]
[352342929,1739049043880,-500.0,0.00011095,2]
[352342930,1739049043889,-500.0,0.00011095,2]
[352342931,1739049043899,-500.0,0.00011095,2]
[352342932,1739049043909,-500.0,0.00011095,2]
[352342933,1739049043918,-985.47,0.00011095,2]
[352342934,1739049043928,-500.0,0.00011095,2]
[352342935,1739049043937,-500.0,0.00011095,2]
[352342936,1739049043946,-509.33,0.00011095,2]
[352342937,1739049043956,-500.0,0.00011095,2]
[352342938,1739049043965,-500.0,0.00011095,2]
[352342939,1739049043975,-1683.44,0.00011095,2]
[352342940,1739049043984,-639.94,0.00011095,2]
[352342941,1739049043994,-500.0,0.00011095,2]
[352342942,1739049044004,-500.0,0.00011095,2]
[352342943,1739049044013,-500.0,0.00011095,2]
[352342944,1739049044023,-600.0,0.00011095,2]
[352342945,1739049044033,-3349.41,0.00011095,2]
[352342946,1739049044042,-465.41283448,0.00011206,2]
[352342947,1739049044052,-674.87,0.0001123,2]
[352342948,1739049044062,-674.87,0.00011231,2]
[352342949,1739049044072,-674.87,0.00011231,2]
[352342950,1739049044082,-674.87,0.00011231,2]
[352342951,1739049044092,-674.87,0.00011231,2]
[352342952,1739049044102,-674.87,0.00011231,2]
[352342953,1739049044111,-674.98591863,0.00011231,2]
[352342954,1739049044121,-500.0,0.00011232,2]
[352342955,1739049044130,-500.0,0.00011232,2]
[352342956,1739049044140,-500.0,0.00011232,2]
[352342957,1739049044149,-500.0,0.00011232,2]
[352342958,1739049044159,-500.0,0.00011232,2]
[352342959,1739049044169,-500.0,0.00011232,2]
[352342960,1739049044179,-500.0,0.00011232,2]
[352342961,1739049044189,-500.0,0.00011232,2]
[352342962,1739049044198,-761.49,0.00011232,2]
[352342963,1739049044208,-500.0,0.00011232,2]
[352342964,1739049044217,-764.85,0.00011232,2]
[352342965,1739049044226,-559.37,0.00011232,2]
[352342966,1739049044236,-500.0,0.00011232,2]
[352342967,1739049044245,-500.0,0.00011232,2]
[352342968,1739049044255,-500.0,0.00011232,2]
[352342969,1739049044264,-500.0,0.00011232,2]
[352342970,1739049044274,-789.36,0.00011232,2]
[352342971,1739049044283,-683.49,0.00011232,2]
[352342972,1739049044293,-500.0,0.00011232,2]
[352342973,1739049044303,-500.0,0.00011232,2]
[352342974,1739049044312,-500.0,0.00011232,2]
[352342975,1739049044322,-500.0,0.00011232,2]
[352342976,1739049044331,-500.0,0.00011232,2]
[352342977,1739049044341,-500.0,0.00011232,2]
[352342978,1739049044355,-500.0,0.00011232,2]
[352342979,1739049044365,-500.0,0.00011232,2]
[352342980,1739049044374,-661.05,0.00011232,2]
[352342981,1739049044383,-500.0,0.00011232,2]
[352342982,1739049044393,-500.0,0.00011232,2]
[352342983,1739049044402,-500.0,0.00011232,2]
[352342984,1739049044412,-500.0,0.00011232,2]
[352342985,1739049044424,-500.0,0.00011232,2]
[352342986,1739049044435,-500.0,0.00011232,2]
[352342987,1739049044445,-500.0,0.00011232,2]
[352342988,1739049044455,-500.0,0.00011232,2]
[352342989,1739049044464,-500.0,0.00011232,2]
[352342990,1739049044474,-500.0,0.00011232,2]
[352342991,1739049044484,-500.0,0.00011232,2]
[352342992,1739049044494,-500.0,0.00011232,2]
[352342993,1739049044504,-500.0,0.00011232,2]
[352342994,1739049044513,-336.26870089,0.00011232,2]
[352342995,1739049044523,-500.0,0.00011232,2]
[352342996,1739049044533,-518.95,0.00011232,2]
[352342997,1739049044544,-500.0,0.00011232,2]
[352342998,1739049044555,-720.98,0.00011232,2]
[352342999,1739049044564,-500.0,0.00011232,2]
[352343000,1739049044575,-500.0,0.00011232,2]
[352343001,1739049044586,-500.0,0.00011232,2]
[352343002,1739049044598,-500.0,0.00011232,2]
[352343003,1739049044609,-227.60640928,0.00011232,2]
[352343004,1739049044620,-362.76141906,0.00011232,2]
[352343005,1739049044631,-500.0,0.00011232,2]
[352343006,1739049044641,-759.15,0.00011232,2]
[352343007,1739049044651,-245.81185511,0.00011232,2]
[352343008,1739049044660,-500.0,0.00011232,2]
[352343009,1739049044670,-21724.02,0.00011232,2]
[352343010,1739049044679,-2238.8,0.00011232,2]
[352343011,1739049044690,-638.54,0.00011232,2]
[352343012,1739049044699,-500.0,0.00011232,2]
[352343013,1739049044709,-500.0,0.00011232,2]
[352343014,1739049044720,-9088.39,0.00011232,2]
[352343015,1739049044731,-1281.87,0.00011232,2]
[352343016,1739049044741,-500.0,0.00011232,2]
[352343017,1739049044751,-1010.56,0.00011232,2]
[352343018,1739049044761,-900.17,0.00011232,2]
[352343019,1739049044771,-500.0,0.00011232,2]
[352343020,1739049044781,-838.49,0.00011232,2]
[352343021,1739049044791,-945.87,0.00011232,2]
[352343022,1739049044801,-500.0,0.00011232,2]
[352343023,1739049044810,-500.0,0.00011232,2]
[352343024,1739049044820,-500.0,0.00011232,2]
[352343025,1739049044830,-500.0,0.00011232,2]
[352343026,1739049044839,-544.75,0.00011232,2]
[352343027,1739049044848,-2715.78,0.00011232,2]
[352343028,1739049044858,-500.0,0.00011232,2]
[352343029,1739049044868,-500.0,0.00011232,2]
[352343030,1739049044878,-828.28,0.00011232,2]
[352343031,1739049044889,-500.0,0.00011232,2]
[352343032,1739049044899,-500.0,0.00011232,2]
[352343033,1739049044908,-500.0,0.00011232,2]
[352343034,1739049044917,-500.0,0.00011232,2]
[352343035,1739049044928,-500.0,0.00011232,2]
[352343036,1739049044938,-767.54,0.00011232,2]
[352343037,1739049044947,-500.0,0.00011232,2]
[352343038,1739049044957,-500.0,0.00011232,2]
[352343039,1739049044966,-500.0,0.00011232,2]
[352343040,1739049044975,-500.0,0.00011232,2]
[352343041,1739049044985,-500.0,0.00011232,2]
[352343042,1739049044994,-500.0,0.00011232,2]
[352343043,1739049045004,-2047.26,0.00011232,2]
[352343044,1739049045013,-500.0,0.00011232,2]
[352343045,1739049045023,-500.0,0.00011232,2]
[352343046,1739049045032,-500.0,0.00011232,2]
[352343047,1739049045043,-932.33,0.00011232,2]
[352343048,1739049045052,-647.01,0.00011232,2]
[352343049,1739049045062,-4954.21,0.00011232,2]
[352343050,1739049045071,-500.0,0.00011232,2]
[352343051,1739049045081,-500.0,0.00011232,2]
[352343052,1739049045090,-1904.01,0.00011232,2]
[352343053,1739049045100,-500.0,0.00011232,2]
[352343054,1739049045110,-500.0,0.00011232,2]
[352343055,1739049045119,-500.0,0.00011232,2]
[352343056,1739049045129,-500.0,0.00011232,2]
[352343057,1739049045138,-780.5,0.00011232,2]
[352343058,1739049045148,-8835.82,0.00011232,2]
[352343059,1739049045158,-500.0,0.00011232,2]
[352343060,1739049045168,-500.0,0.00011232,2]
[352343061,1739049045178,-938.64,0.00011232,2]
[352343062,1739049045188,-500.0,0.00011232,2]
[352343063,1739049045198,-500.0,0.00011232,2]
[352343064,1739049045207,-2037.78,0.00011232,2]
[352343065,1739049045217,-500.0,0.00011232,2]
[352343066,1739049045227,-614.12,0.00011232,2]
[352343067,1739049045236,-1916.01,0.00011232,2]
[352343068,1739049045246,-862.96,0.00011232,2]
[352343069,1739049045255,-500.0,0.00011232,2]
[352343070,1739049045264,-500.0,0.00011232,2]
[352343071,1739049045273,-829.65,0.00011232,2]
[352343072,1739049045283,-500.0,0.00011232,2]
[352343073,1739049045293,-500.0,0.00011232,2]
[352343074,1739049045302,-500.0,0.00011232,2]
[352343075,1739049045311,-500.0,0.00011232,2]
[352343076,1739049045320,-500.0,0.00011232,2]
[352343077,1739049045330,-674.32,0.00011232,2]
[352343078,1739049045339,-457.57404294,0.00011232,2]
[352343079,1739049045351,-500.0,0.00011232,2]
[352343080,1739049045361,-500.0,0.00011232,2]
[352343081,1739049045371,-985.47,0.00011232,2]
[352343082,1739049045380,-500.0,0.00011232,2]
[352343083,1739049045389,-500.0,0.00011232,2]
[352343084,1739049045400,-509.33,0.00011232,2]
[352343085,1739049045410,-344.92397539,0.00011232,2]
[352343086,1739049045419,-500.0,0.00011232,2]
[352343087,1739049045430,-1683.44,0.00011232,2]
[352343088,1739049045440,-639.94,0.00011232,2]
[352343089,1739049045449,-500.0,0.00011232,2]
[352343090,1739049045459,-500.0,0.00011232,2]
[352343091,1739049045468,-500.0,0.00011232,2]
[352343092,1739049045478,-600.0,0.00011232,2]
[352343093,1739049045487,-500.0,0.00011369,2]
[352343094,1739049045496,-500.0,0.00011369,2]
[352343095,1739049045506,-500.0,0.00011369,2]
[352343096,1739049045515,-500.0,0.00011369,2]
[352343097,1739049045524,-500.0,0.00011369,2]
[352343098,1739049045534,-246.04762436,0.00011369,2]
[352343099,1739049045544,-761.49,0.00011369,2]
[352343100,1739049045554,-764.85,0.00011369,2]
[352343101,1739049045563,-559.37,0.00011369,2]
[352343102,1739049045573,-625.23,0.00011369,2]
[352343103,1739049045582,-500.0,0.00011369,2]
[352343104,1739049045591,-500.0,0.00011369,2]
[352343105,1739049045602,-789.36,0.00011369,2]
[352343106,1739049045611,-683.49,0.00011369,2]
[352343107,1739049045620,-500.0,0.00011369,2]
[352343108,1739049045630,-500.0,0.00011369,2]
[352343109,1739049045639,-500.0,0.00011369,2]
[352343110,1739049045649,-500.0,0.00011369,2]
[352343111,1739049045659,-500.0,0.00011369,2]
[352343112,1739049045668,-500.0,0.00011369,2]
[352343113,1739049045819,-661.05,0.00011369,2]
[352343114,1739049045829,-500.0,0.00011369,2]
[352343115,1739049045839,-500.0,0.00011369,2]
[352343116,1739049045848,-500.0,0.00011369,2]
[352343117,1739049045857,-500.0,0.00011369,2]
[352343118,1739049045867,-500.0,0.00011369,2]
[352343119,1739049045877,-500.0,0.00011369,2]
[352343120,1739049045887,-500.0,0.00011369,2]
[352343121,1739049045897,-500.0,0.00011369,2]
[352343122,1739049045906,-518.95,0.00011369,2]
[352343123,1739049045916,-720.98,0.00011369,2]
[352343125,1739049045926,-500.0,0.00011369,2]
[352343126,1739049045937,-500.0,0.00011369,2]
[352343127,1739049045946,-500.0,0.00011369,2]
[352343128,1739049045956,-500.0,0.00011369,2]
[352343129,1739049045966,-759.15,0.00011369,2]
[352343130,1739049045976,-500.0,0.00011369,2]
[352343132,1739049045986,-21724.02,0.00011369,2]
[352343134,1739049045995,-2238.8,0.00011369,2]
[352343136,1739049046004,-638.54,0.00011369,2]
[352343138,1739049046013,-500.0,0.00011369,2]
[352343139,1739049046023,-500.0,0.00011369,2]
[352343141,1739049046032,-9088.39,0.00011369,2]
[352343143,1739049046042,-1281.87,0.00011369,2]
[352343145,1739049046051,-500.0,0.00011369,2]
[352343146,1739049046061,-1010.56,0.00011369,2]
[352343147,1739049046070,-900.17,0.00011369,2]
[352343148,1739049046080,-550.25,0.00011369,2]
[352343149,1739049046089,-838.49,0.00011369,2]
[352343150,1739049046099,-945.87,0.00011369,2]
[352343151,1739049046108,-500.0,0.00011369,2]
[352343152,1739049046117,-500.0,0.00011369,2]
[352343153,1739049046127,-174.13751698,0.00011369,2]
[352343154,1739049046136,-500.0,0.00011369,2]
[352343155,1739049046146,-544.75,0.00011369,2]
[352343156,1739049046156,-2715.78,0.00011369,2]
[352343157,1739049046165,-500.0,0.00011369,2]
[352343158,1739049046175,-500.0,0.00011369,2]
[352343159,1739049046184,-828.28,0.00011369,2]
[352343160,1739049046194,-500.0,0.00011369,2]
[352343161,1739049046203,-500.0,0.00011369,2]
[352343162,1739049046212,-289.09,0.00011369,2]
[352343163,1739049046222,-500.0,0.00011369,2]
[352343164,1739049046231,-500.0,0.00011369,2]
[352343165,1739049046240,-767.54,0.00011369,2]
[352343166,1739049046249,-500.0,0.00011369,2]
[352343167,1739049046259,-500.0,0.00011369,2]
[352343168,1739049046268,-500.0,0.00011369,2]
[352343169,1739049046277,-500.0,0.00011369,2]
[352343170,1739049046286,-500.0,0.00011369,2]
[352343171,1739049046295,-500.0,0.00011369,2]
[352343172,1739049046305,-2047.26,0.00011369,2]
[352343173,1739049046314,-500.0,0.00011369,2]
[352343174,1739049046324,-533.66,0.00011369,2]
[352343175,1739049046333,-932.33,0.00011369,2]
[352343176,1739049046343,-647.01,0.00011369,2]
[352343177,1739049046356,-4954.21,0.00011369,2]
[352343178,1739049046365,-500.0,0.00011369,2]
[352343179,1739049046374,-500.0,0.00011369,2]
[352343181,1739049046383,-1904.01,0.00011369,2]
[352343183,1739049046393,-500.0,0.00011369,2]
[352343184,1739049046402,-500.0,0.00011369,2]
[352343186,1739049046412,-500.0,0.00011369,2]
[352343188,1739049046421,-500.0,0.00011369,2]
[352343190,1739049046431,-780.5,0.00011369,2]
[352343192,1739049046440,-8835.82,0.00011369,2]
[352343194,1739049046449,-500.0,0.00011369,2]
[352343196,1739049046458,-500.0,0.00011369,2]
[352343198,1739049046467,-270.005358,0.00011369,2]
[352343200,1739049046477,-938.64,0.00011369,2]
[352343202,1739049046486,-500.0,0.00011369,2]
[352343204,1739049046495,-500.0,0.00011369,2]
[352343206,1739049046505,-2037.78,0.00011369,2]
[352343208,1739049046514,-270.005358,0.00011369,2]
[352343210,1739049046523,-500.0,0.00011369,2]
[352343212,1739049046532,-614.12,0.00011369,2]
[352343214,1739049046542,-1916.01,0.00011369,2]
[352343216,1739049046551,-862.96,0.00011369,2]
[352343218,1739049046560,-336.34060553,0.00011369,2]
[352343220,1739049046569,-462.27252829,0.00011369,2]
[352343222,1739049046578,-829.65,0.00011369,2]
[352343224,1739049046587,-500.0,0.00011369,2]
[352343226,1739049046596,-500.0,0.00011369,2]
[352343228,1739049046605,-500.0,0.00011369,2]
[352343230,1739049046614,-174.103427,0.00011369,2]
[352343232,1739049046624,-500.0,0.00011369,2]
[352343234,1739049046633,-500.0,0.00011369,2]
[352343236,1739049046642,-674.32,0.00011369,2]
[352343238,1739049046652,-500.0,0.00011369,2]
[352343240,1739049046660,-985.47,0.00011369,2]
[352343242,1739049046670,-500.0,0.00011369,2]
[352343244,1739049046680,-500.0,0.00011369,2]
[352343246,1739049046690,-509.33,0.00011369,2]
[352343248,1739049046700,-500.0,0.00011369,2]
[352343250,1739049046710,-639.94,0.00011369,2]
[352343253,1739049046720,-1683.44,0.00011369,2]
[352343255,1739049046731,-500.0,0.00011369,2]
[352343257,1739049046740,-600.0,0.00011369,2]
[352343259,1739049046750,-500.0,0.00011389,2]
[352343261,1739049046760,-500.0,0.00011389,2]
[352343263,1739049046769,-500.0,0.00011389,2]
[352343265,1739049046779,-500.0,0.00011389,2]
[352343267,1739049046788,-158.53021121,0.00011389,2]
[352343268,1739049046798,-151.59975057,0.00011389,2]
[352343271,1739049046808,-151.0,0.00011389,2]
[352343272,1739049046817,-261.26856444,0.00011389,2]
[352343275,1739049046827,-500.0,0.00011389,2]
[352343277,1739049046836,-187.20311775,0.00011389,2]
[352343279,1739049046845,-151.64112493,0.00011389,2]
[352343281,1739049046855,-166.368594,0.00011397,5]
[352343283,1739049046865,-500.0,0.00011423,2]
[352343285,1739049046875,-151.0,0.00011423,2]
[352343287,1739049046885,-151.0,0.00011423,2]
[352343289,1739049046894,-153.0,0.00011425,2]
[352343291,1739049046904,-153.0,0.00011425,2]
[352343293,1739049046914,-153.0,0.00011425,2]
[352343295,1739049046928,-153.0,0.00011425,2]
[352343297,1739049046939,-153.0,0.00011425,2]
[352343300,1739049046948,-306.0,0.00011425,2]
[352343301,1739049046958,-153.0,0.00011425,2]
[352343303,1739049046967,-166.368594,0.00011491,5]
[352343305,1739049046976,-483.93865186,0.000115,2]
[352343307,1739049046986,-586.26103756,0.00011505,2]
[352343309,1739049046996,-500.0,0.00011505,2]
[352343311,1739049047006,-500.0,0.00011506,2]
[352343313,1739049047016,-500.0,0.00011506,2]
[352343316,1739049047026,-500.0,0.00011506,2]
[352343317,1739049047035,-761.49,0.00011506,2]
[352343319,1739049047044,-764.85,0.00011506,2]
[352343321,1739049047054,-559.37,0.00011506,2]
[352343323,1739049047064,-500.0,0.00011506,2]
[352343325,1739049047074,-500.0,0.00011506,2]
[352343327,1739049047083,-789.36,0.00011506,2]
[352343329,1739049047093,-683.49,0.00011506,2]
[352343331,1739049047102,-500.0,0.00011506,2]
[352343333,1739049047112,-500.0,0.00011506,2]
[352343335,1739049047122,-500.0,0.00011506,2]
[352343337,1739049047132,-500.0,0.00011506,2]
[352343339,1739049047141,-661.05,0.00011506,2]
[352343341,1739049047150,-151.0,0.00011506,2]
[352343343,1739049047160,-500.0,0.00011506,2]
[352343345,1739049047170,-500.0,0.00011506,2]
[352343347,1739049047181,-500.0,0.00011506,2]
[352343349,1739049047190,-649.8897557,0.00011506,2]
[352343351,1739049047200,-500.0,0.00011506,2]
[352343353,1739049047210,-500.0,0.00011506,2]
[352343355,1739049047219,-500.0,0.00011506,2]
[352343357,1739049047228,-518.95,0.00011506,2]
[352343359,1739049047237,-720.98,0.00011506,2]
[352343361,1739049047247,-500.0,0.00011506,2]
[352343363,1739049047256,-281.99002132,0.00011506,2]
[352343365,1739049047265,-500.0,0.00011506,2]
[352343367,1739049047274,-151.0,0.00011506,2]
[352343368,1739049047284,-759.15,0.00011506,2]
[352343369,1739049047293,-500.0,0.00011506,2]
[352343370,1739049047303,-21724.02,0.00011506,2]
[352343371,1739049047312,-2238.8,0.00011506,2]
[352343372,1739049047321,-638.54,0.00011506,2]
[352343373,1739049047331,-500.0,0.00011506,2]
[352343374,1739049047340,-500.0,0.00011506,2]
[352343375,1739049047353,-9088.39,0.00011506,2]
[352343376,1739049047362,-260.366949,0.00011506,2]
[352343377,1739049047372,-1281.87,0.00011506,2]
[352343378,1739049047381,-1010.56,0.00011506,2]
[352343379,1739049047391,-260.366949,0.00011506,2]
[352343380,1739049047400,-900.17,0.00011506,2]
[352343381,1739049047410,-838.49,0.00011506,2]
[352343382,1739049047419,-945.87,0.00011506,2]
[352343383,1739049047429,-500.0,0.00011506,2]
[352343384,1739049047439,-500.0,0.00011506,2]
[352343385,1739049047447,-151.0,0.00011506,2]
[352343386,1739049047456,-500.0,0.00011506,2]
[352343387,1739049047466,-544.75,0.00011506,2]
[352343389,1739049047475,-2715.78,0.00011506,2]
[352343391,1739049047484,-151.0,0.00011506,2]
[352343393,1739049047493,-163.45,0.00011506,2]
[352343395,1739049047503,-500.0,0.00011506,2]
[352343397,1739049047514,-828.28,0.00011506,2]
[352343399,1739049047524,-500.0,0.00011506,2]
[352343401,1739049047533,-500.0,0.00011506,2]
[352343403,1739049047542,-500.0,0.00011506,2]
[352343405,1739049047551,-767.54,0.00011506,2]
[352343407,1739049047561,-500.0,0.00011506,2]
[352343409,1739049047570,-500.0,0.00011506,2]
[352343411,1739049047580,-500.0,0.00011506,2]
[352343413,1739049047590,-500.0,0.00011506,2]
[352343415,1739049047599,-500.0,0.00011506,2]
[352343417,1739049047609,-500.0,0.00011506,2]
[352343419,1739049047618,-2047.26,0.00011506,2]
[352343421,1739049047628,-500.0,0.00011506,2]
[352343423,1739049047638,-932.33,0.00011506,2]
[352343425,1739049047647,-4954.21,0.00011506,2]
[352343427,1739049047658,-647.01,0.00011506,2]
[352343429,1739049047667,-500.0,0.00011506,2]
[352343431,1739049047677,-500.0,0.00011506,2]
[352343433,1739049047687,-1904.01,0.00011506,2]
[352343436,1739049047696,-500.0,0.00011506,2]
[352343438,1739049047706,-500.0,0.00011506,2]
[352343439,1739049047715,-500.0,0.00011506,2]
[352343442,1739049047725,-500.0,0.00011506,2]
[352343444,1739049047735,-780.5,0.00011506,2]
[352343446,1739049047745,-8835.82,0.00011506,2]
[352343447,1739049047754,-513.28479079,0.00011506,2]
[352343450,1739049047763,-938.64,0.00011506,2]
[352343452,1739049047773,-283.398644,0.00011506,2]
[352343454,1739049047783,-500.0,0.00011506,2]
[352343456,1739049047792,-500.0,0.00011506,2]
[352343458,1739049047802,-2037.78,0.00011506,2]
[352343460,1739049047811,-500.0,0.00011506,2]
[352343461,1739049047821,-283.398644,0.00011506,2]
[352343463,1739049047830,-614.12,0.00011506,2]
[352343464,1739049047841,-1916.01,0.00011506,2]
[352343465,1739049047851,-862.96,0.00011506,2]
[352343466,1739049047860,-829.65,0.00011506,2]
[352343467,1739049047870,-500.0,0.00011506,2]
[352343468,1739049047880,-500.0,0.00011506,2]
[352343469,1739049047889,-481.37302079,0.00011506,2]
[352343470,1739049047899,-500.0,0.00011506,2]
[352343471,1739049047908,-151.0,0.00011506,2]
[352343472,1739049047917,-500.0,0.00011506,2]
[352343473,1739049047927,-674.32,0.00011506,2]
[352343474,1739049047936,-500.0,0.00011506,2]
[352343475,1739049047946,-985.47,0.00011506,2]
[352343476,1739049047955,-500.0,0.00011506,2]
[352343477,1739049047965,-500.0,0.00011506,2]
[352343478,1739049047975,-509.33,0.00011506,2]
[352343479,1739049047985,-500.0,0.00011506,2]
[352343480,1739049047995,-1683.44,0.00011506,2]
[352343481,1739049048006,-639.94,0.00011506,2]
[352343482,1739049048016,-151.0,0.00011506,2]
[352343483,1739049048027,-500.0,0.00011506,2]
[352343484,1739049048037,-600.0,0.00011506,2]
[352343485,1739049048048,-13265.39216455,0.00011508,2]
[352343486,1739049048058,-166.368594,0.00011584,5]
[352343487,1739049048068,-338.444379,0.00011643,2]
[352343488,1739049048078,-338.444379,0.00011643,2]